bitfinex/quotes_ETHUSD_20250909
["timestamp","ask_amount","ask_price","bid_price","bid_amount"]
[1757395941992,3.338,4307.1,4306.9,0.9236]
[1757395942181,3.338,4307.1,4307.0,0.2896]
[1757395942376,3.338,4307.1,4306.9,2.77964338]
[1757395942574,3.338,4307.1,4307.0,3.0]
[1757395942800,3.338,4307.1,4306.9,2.32184338]
[1757395943172,0.3134,4307.0,4306.8,0.002]
[1757395944771,0.3134,4307.0,4306.8,2.32389987]
[1757395946202,0.3134,4307.0,4306.9,2.32185562]
[1757395947202,0.3134,4307.0,4306.8,2.32389683]
[1757395947567,0.3134,4307.0,4306.8,0.002]
[1757395949210,0.3134,4307.0,4306.8,2.32390489]
[1757395949369,0.3134,4307.0,4306.9,2.32185562]
[1757395950872,0.3134,4307.0,4306.8,2.32389411]
[1757395951203,0.3134,4307.0,4306.8,0.002]
[1757395952002,0.3134,4307.0,4306.8,2.32390476]
[1757395953805,3.338,4307.1,4306.9,0.7663]
[1757395954009,3.338,4307.1,4307.0,5.32180171]
[1757395954164,3.338,4307.1,4307.0,3.0]
[1757395954361,3.338,4307.1,4307.0,5.32180171]
[1757395954705,3.338,4307.1,4307.0,3.08810171]
[1757395955405,3.338,4307.1,4307.0,3.03810171]
[1757395955575,0.117,4307.2,4307.1,2.32174781]
[1757395955576,0.001,4307.2,4307.1,2.32174781]
[1757395955760,3.869,4307.2,4307.1,6.25854781]
[1757395955964,3.869,4307.2,4307.1,6.57044781]
[1757395967514,0.001,4307.2,4307.1,6.57044781]
[1757395967714,3.868,4307.2,4307.1,6.57044781]
[1757395969014,0.001,4307.2,4307.1,6.57044781]
[1757395969433,0.001,4307.2,4307.1,7.47147797]
[1757395973544,0.001,4307.2,4307.1,8.26347797]
[1757395973930,0.001,4307.2,4307.1,8.95992874]
[1757395977675,0.001,4307.2,4307.1,8.02312874]
[1757395977851,0.001,4307.2,4307.1,8.47752874]
[1757395978778,0.001,4307.2,4307.1,8.95992874]
[1757395984848,0.001,4307.2,4307.1,10.62860342]
[1757395986205,0.001,4307.2,4307.1,8.95992874]
[1757395987983,0.001,4307.4,4307.3,3.11364]
[1757395988290,0.001,4307.4,4307.3,13.61517358]
[1757395988463,0.001,4307.4,4307.3,14.93265718]
[1757395989347,0.001,4307.7,4307.3,14.93265718]
[1757395989348,0.001,4307.7,4307.6,3.11347831]
[1757395989544,0.001,4307.7,4307.6,10.00169309]
[1757395989749,0.001,4307.7,4307.6,11.31917831]
[1757395989947,0.001,4307.7,4307.6,13.45494725]
[1757395990265,0.001,4307.7,4307.6,13.54779183]
[1757395994270,0.041,4307.9,4307.7,6.11342442]
[1757395994490,0.041,4307.9,4307.8,7.656]
[1757395994692,0.041,4307.9,4307.8,11.20207053]
[1757395995002,0.041,4307.9,4307.8,11.96895074]
[1757395995538,0.5013,4308.8,4308.0,3.11326276]
[1757395995731,0.5013,4308.8,4308.0,10.09326276]
[1757395995933,0.5013,4308.8,4308.0,11.31796276]
[1757395996320,0.5013,4308.8,4308.0,11.81926276]
[1757395996521,0.5013,4308.8,4308.0,13.54215655]
[1757395999214,0.5013,4308.8,4308.0,12.81705655]
[1757395999542,0.8899,4308.6,4308.0,12.31745655]
[1757395999838,0.8899,4308.6,4308.0,12.2925598]
[1757396001749,0.8909,4308.6,4308.0,12.2925598]
[1757396005423,0.4773,4308.6,4308.0,12.2925598]
[1757396006953,0.2966,4308.1,4308.0,12.2925598]
[1757396007749,0.001,4308.1,4308.0,12.2925598]
[1757396008545,0.2956,4308.1,4308.0,12.2925598]
[1757396009579,0.001,4308.1,4308.0,11.5005598]
[1757396009870,0.2966,4308.1,4308.0,12.2925598]
[1757396011849,0.2966,4308.1,4308.0,16.5225598]
[1757396013088,0.2966,4308.1,4308.0,15.7305598]
[1757396014166,0.2966,4308.1,4308.0,18.18632011]
[1757396014167,0.001,4308.1,4308.0,18.18632011]
[1757396016978,0.001,4308.1,4308.0,18.18432011]
[1757396017351,0.001,4308.1,4308.0,18.48662011]
[1757396017552,0.001,4308.1,4308.0,19.42342011]
[1757396017772,0.001,4308.1,4308.0,15.19342011]
[1757396019167,0.001,4308.1,4308.0,13.5296598]
[1757396019372,0.018,4308.9,4308.8,2.32083178]
[1757396019771,0.0952,4308.9,4308.8,2.32083178]
[1757396038223,0.0952,4308.9,4308.8,2.32283178]
[1757396038607,0.0962,4308.9,4308.8,2.32283178]
[1757396039176,0.019,4308.9,4308.8,2.32283178]
[1757396040519,0.019,4308.9,4308.8,3.08183178]
[1757396043312,0.019,4308.9,4308.8,3.53843178]
[1757396043838,0.019,4308.9,4308.8,3.08723178]
[1757396044340,0.019,4308.9,4308.8,2.32283178]
[1757396055769,0.019,4308.9,4308.8,3.09953178]
[1757396056009,0.019,4308.9,4308.8,4.64066269]
[1757396056175,0.019,4308.9,4308.8,4.75666269]
[1757396056576,0.019,4308.9,4308.8,12.40666269]
[1757396060576,0.019,4308.9,4308.8,11.49336269]
[1757396060923,0.019,4308.9,4308.8,11.95546269]
[1757396061275,0.019,4308.9,4308.8,12.40666269]
[1757396061477,0.019,4308.9,4308.8,6.52876269]
[1757396061824,0.019,4308.9,4308.8,10.38676269]
[1757396063179,0.019,4308.9,4308.8,7.29456269]
[1757396063526,0.019,4308.9,4308.8,6.84336269]
[1757396064097,0.019,4308.9,4308.8,7.30546269]
[1757396064880,0.019,4308.9,4308.8,7.75666269]
[1757396065084,0.019,4308.9,4308.8,6.84336269]
[1757396065333,0.019,4308.9,4308.8,11.16346269]
[1757396067231,0.019,4308.9,4308.8,8.54866269]
[1757396071521,0.019,4308.9,4308.8,12.40566269]
[1757396081767,0.019,4308.9,4308.8,8.54866269]
[1757396081969,0.019,4308.9,4308.8,12.40466269]
[1757396084536,0.019,4308.9,4308.8,11.49136269]
[1757396085122,0.118,4308.9,4308.8,8.1953671]
[1757396085400,0.5891,4308.9,4308.8,6.52876269]
[1757396085779,0.118,4308.9,4308.8,6.52876269]
[1757396086761,0.9995,4308.9,4308.8,6.52876269]
[1757396087506,0.5891,4308.9,4308.8,6.52876269]
[1757396087686,0.9995,4308.9,4308.8,6.52876269]
[1757396087864,0.5891,4308.9,4308.8,6.52876269]
[1757396089968,0.118,4308.9,4308.8,6.52876269]
[1757396092711,0.019,4308.9,4308.8,8.50826269]
[1757396094074,0.019,4308.9,4308.8,12.36426269]
[1757396095273,0.019,4308.9,4308.8,11.90836269]
[1757396096123,0.019,4308.9,4308.8,8.05236269]
[1757396097725,0.019,4308.9,4308.8,8.50826269]
[1757396103593,0.019,4308.9,4308.8,11.90736269]
[1757396103908,0.019,4308.9,4308.8,11.17576269]
[1757396105134,0.019,4308.9,4308.8,11.94426269]
[1757396105752,0.019,4308.9,4308.8,8.08926269]
[1757396105940,0.019,4308.9,4308.8,7.32076269]
[1757396107465,0.019,4308.9,4308.8,8.08926269]
[1757396110644,0.019,4308.9,4308.8,7.32076269]
[1757396111779,0.019,4308.9,4308.8,8.08926269]
[1757396112484,0.019,4308.9,4308.8,7.32076269]
[1757396114180,0.118,4308.9,4308.8,5.43883178]
[1757396114393,1.0175,4308.9,4308.8,5.32283178]
[1757396115186,0.6071,4308.9,4308.8,5.32283178]
[1757396115382,0.118,4308.9,4308.8,5.32283178]
[1757396115690,1.0175,4308.9,4308.8,5.32283178]
[1757396116692,0.118,4308.9,4308.8,5.32283178]
[1757396119642,0.019,4308.9,4308.8,5.32283178]
[1757396122327,0.1211,4308.9,4308.8,5.32283178]
[1757396125627,0.019,4308.9,4308.8,5.32283178]
[1757396127124,0.118,4308.9,4308.8,5.32283178]
[1757396127325,0.6071,4308.9,4308.8,5.32283178]
[1757396127528,0.118,4308.9,4308.8,5.32283178]
[1757396129637,0.019,4308.9,4308.8,5.32283178]
[1757396130050,0.118,4308.9,4308.8,3.002]
[1757396130404,0.118,4308.9,4308.8,5.32283178]
[1757396131174,0.118,4308.9,4308.8,3.002]
[1757396131469,0.118,4308.9,4308.8,5.32283178]
[1757396134623,0.118,4308.9,4308.8,3.002]
[1757396134844,0.6134,4308.9,4308.8,3.002]
[1757396135152,1.0238,4308.9,4308.8,3.002]
[1757396136227,1.35824623,4308.9,4308.8,3.002]
[1757396137111,0.6134,4308.9,4308.8,3.002]
[1757396137420,1.0238,4308.9,4308.8,3.002]
[1757396139318,0.6134,4308.9,4308.8,3.002]
[1757396141484,0.118,4308.9,4308.8,3.002]
[1757396145982,0.6134,4308.9,4308.8,3.002]
[1757396146778,0.94784715,4308.9,4308.8,3.002]
[1757396147413,0.45244715,4308.9,4308.8,3.002]
[1757396151690,4.30544715,4308.9,4308.8,3.002]
[1757396155421,6.62622507,4308.9,4308.8,0.002]
[1757396155620,7.53202507,4308.9,4308.8,0.002]
[1757396157593,7.12162507,4308.9,4308.8,0.002]
[1757396157798,7.92325525,4308.9,4308.8,0.002]
[1757396163245,18.18496526,4308.9,4308.8,0.002]
[1757396168073,15.45378734,4308.9,4308.0,0.002]
[1757396168286,2.32120888,4308.1,4308.0,0.002]
[1757396168603,8.1727215,4308.1,4308.0,0.002]
[1757396168733,9.26401503,4308.1,4308.0,0.002]
[1757396169938,8.85661503,4308.1,4308.0,0.002]
[1757396170135,9.29181108,4308.1,4308.0,0.002]
[1757396170338,8.97319846,4308.1,4308.0,0.2907]
[1757396170540,8.97319846,4308.1,4308.0,1.2055]
[1757396171597,5.02730493,4308.1,4308.0,1.2055]
[1757396171914,7.95620888,4308.1,4308.0,1.2055]
[1757396173896,5.635,4308.1,4308.0,1.2055]
[1757396175019,7.95620888,4308.1,4308.0,1.2055]
[1757396187299,7.95620888,4308.1,4308.0,0.7503]
[1757396189826,8.05520888,4308.1,4308.0,0.002]
[1757396190152,9.08304059,4308.1,4308.0,0.002]
[1757396190456,9.98234059,4308.1,4308.0,0.002]
[1757396190754,9.57194059,4308.1,4308.0,0.002]
[1757396190956,9.78911965,4308.1,4308.0,0.002]
[1757396192024,10.19951965,4308.1,4308.0,0.002]
[1757396192330,9.78911965,4308.1,4308.0,0.002]
[1757396192532,9.30021965,4308.1,4308.0,0.002]
[1757396196850,9.20121965,4308.1,4308.0,0.3111]
[1757396197021,9.20121965,4308.1,4308.0,1.2118]
[1757396197022,7.95520888,4308.1,4308.0,1.2118]
[1757396197224,8.17238709,4308.1,4308.0,1.2118]
[1757396197546,8.17238709,4308.1,4308.0,0.7416]
[1757396197974,7.95520888,4308.1,4308.0,0.7416]
[1757396198171,9.20010866,4308.1,4308.0,0.7416]
[1757396199531,9.20010866,4308.1,4308.0,1.2118]
[1757396205901,9.20010866,4308.1,4308.0,0.7416]
[1757396208804,9.20010866,4308.1,4308.0,0.3111]
[1757396210394,9.20010866,4308.1,4308.0,0.002]
[1757396210552,9.49650866,4308.1,4308.0,0.002]
[1757396210756,9.94770866,4308.1,4308.0,0.002]
[1757396211403,9.49650866,4308.1,4308.0,0.002]
[1757396220578,9.20010866,4308.1,4308.0,0.3111]
[1757396220778,5.34810866,4308.1,4308.0,1.2118]
[1757396220978,1.99916757,4308.1,4308.0,1.2118]
[1757396221180,5.634,4308.1,4308.0,1.2118]
[1757396222721,5.634,4308.1,4308.0,0.002]
[1757396222722,8.26890888,4308.1,4308.0,0.002]
[1757396223218,8.48623167,4308.1,4308.0,0.002]
[1757396226532,8.17253167,4308.1,4308.0,0.002]
[1757396227506,9.22199513,4308.1,4308.0,0.002]
[1757396228285,9.32099513,4308.1,4308.0,0.002]
[1757396231099,9.78999513,4308.1,4308.0,0.002]
[1757396231332,10.20039513,4308.1,4308.0,0.002]
[1757396231535,10.99239513,4308.1,4308.0,0.002]
[1757396231737,5.32126276,4308.0,4307.9,1e-08]
[1757396232050,8.30703096,4308.0,4307.9,1e-08]
[1757396232219,12.72603096,4308.0,4307.9,1e-08]
[1757396232421,13.13643096,4308.0,4307.9,1e-08]
[1757396234045,9.25703096,4308.0,4307.9,1e-08]
[1757396234258,8.75649352,4308.0,4307.9,1e-08]
[1757396236454,9.22549352,4308.0,4307.9,1e-08]
[1757396238358,8.75649352,4308.0,4307.9,1e-08]
[1757396240655,14.69316445,4308.0,4307.9,1e-08]
[1757396243084,13.81376445,4308.0,4307.9,1e-08]
[1757396245594,8.75649352,4308.0,4307.9,1e-08]
[1757396246944,8.65749352,4308.0,4307.9,1e-08]
[1757396250545,11.09949352,4308.0,4307.9,1e-08]
[1757396250794,8.65749352,4308.0,4307.9,1e-08]
[1757396251959,8.75959352,4308.0,4307.9,1e-08]
[1757396252270,8.76059352,4308.0,4307.9,1e-08]
[1757396253251,9.26060854,4308.0,4307.9,1e-08]
[1757396253854,14.31787947,4308.0,4307.9,1e-08]
[1757396254149,15.21997947,4308.0,4307.9,1e-08]
[1757396254293,16.01197947,4308.0,4307.9,1e-08]
[1757396254755,16.10488313,4308.0,4307.9,1e-08]
[1757396254956,15.69748313,4308.0,4307.9,1e-08]
[1757396256307,15.20278313,4308.0,4307.9,1e-08]
[1757396259218,15.20260306,4308.0,4307.9,1e-08]
[1757396264030,15.10050306,4308.0,4307.9,1e-08]
[1757396264237,15.0075994,4308.0,4307.9,0.29060001]
[1757396264402,15.0075994,4308.0,4307.9,1e-08]
[1757396265473,15.1065994,4308.0,4307.9,1e-08]
[1757396265738,8.17074924,4307.6,4307.5,0.002]
[1757396266032,13.78939471,4307.6,4307.5,0.002]
[1757396266256,4.08912378,4307.6,4307.5,0.7501]
[1757396266544,7.44010876,4307.6,4307.5,1.2062]
[1757396266752,7.94012378,4307.6,4307.5,0.7487]
[1757396267409,7.94012378,4307.6,4307.5,0.002]
[1757396268406,7.94012378,4307.6,4307.5,0.4581]
[1757396268631,7.94012378,4307.6,4307.5,0.7487]
[1757396272619,7.94012378,4307.6,4307.5,1.2062]
[1757396273030,7.9404693,4307.6,4307.5,1.2062]
[1757396274661,7.9404693,4307.6,4307.5,0.7487]
[1757396275067,7.9404693,4307.6,4307.2,0.4575]
[1757396275068,2.32391438,4307.5,4306.1,0.4995]
[1757396275275,7.37950398,4306.2,4306.1,0.042]
[1757396275428,13.5436467,4306.2,4306.1,0.042]
[1757396275761,14.04355993,4306.2,4306.1,0.042]
[1757396276319,8.986289,4306.2,4306.1,0.042]
[1757396276567,2.32234091,4306.0,4305.9,0.002]
[1757396276857,6.40948363,4306.0,4305.9,0.002]
[1757396278968,2.32239485,4305.9,4305.8,0.0249]
[1757396279129,2.53953757,4305.9,4305.8,0.0249]
[1757396279328,2.32239485,4305.9,4305.8,0.0249]
[1757396279530,3.47469665,4305.9,4305.8,0.0249]
[1757396281805,3.47469665,4305.9,4305.8,1.2852]
[1757396282885,6.36813545,4306.0,4305.8,1.2852]
[1757396282886,0.17579454,4306.0,4305.8,1.2852]
[1757396283035,6.19139485,4305.9,4305.8,0.3359]
[1757396283241,6.19239485,4305.9,4305.8,0.3359]
[1757396283459,3.87,4305.9,4305.8,0.3359]
[1757396283670,3.87,4305.9,4305.8,1.2852]
[1757396284590,1.782,4306.2,4305.8,1.2852]
[1757396284760,3.87,4306.1,4305.8,0.3359]
[1757396284962,3.87,4306.1,4305.9,0.9493]
[1757396285162,3.87,4306.1,4306.0,1.2603]
[1757396288786,6.19228698,4306.1,4306.0,1.2603]
[1757396289070,7.00705306,4306.1,4306.0,0.311]
[1757396289325,7.00705306,4306.1,4306.0,0.7858]
[1757396289473,7.00705306,4306.1,4306.0,1.2603]
[1757396293812,2.32239485,4305.9,4305.8,0.0269]
[1757396293971,7.95903088,4305.9,4305.8,0.0269]
[1757396294171,8.96313088,4305.9,4305.8,0.0269]
[1757396295325,8.55573088,4305.9,4305.8,0.0269]
[1757396295630,8.06113088,4305.9,4305.8,0.0269]
[1757396301536,8.27743368,4305.9,4305.8,0.0269]
[1757396304654,8.17533368,4305.9,4305.8,0.0269]
[1757396304852,8.17533368,4305.9,4305.8,0.3379]
[1757396305284,8.17533368,4305.9,4305.8,0.8127]
[1757396306056,8.17633368,4305.9,4305.8,0.8127]
[1757396306385,4.30733368,4305.9,4305.8,0.8124]
[1757396306552,6.40769765,4305.9,4305.8,1.2872]
[1757396308814,0.001,4305.9,4305.8,1.2872]
[1757396309095,3.87,4305.9,4305.8,1.2872]
[1757396310103,6.19239485,4305.9,4305.8,1.2872]
[1757396310454,3.87,4305.9,4305.8,1.2872]
[1757396315209,6.19239485,4305.9,4305.8,1.2872]
[1757396320615,7.23951187,4305.9,4305.8,0.0269]
[1757396320786,7.23951187,4305.9,4305.8,0.4806]
[1757396321122,6.19239485,4305.9,4305.8,1.2492]
[1757396323617,6.19239485,4305.9,4305.8,0.7859]
[1757396325678,6.19239485,4305.9,4305.8,0.0269]
[1757396325885,6.29139485,4305.9,4305.8,0.0269]
[1757396326080,7.34841355,4305.9,4305.8,0.0269]
[1757396326280,8.01631862,4305.9,4305.8,0.0269]
[1757396326523,8.42671862,4305.9,4305.8,0.0269]
[1757396327115,8.01631862,4305.9,4305.8,0.0269]
[1757396328109,7.56491862,4305.9,4305.8,0.0269]
[1757396328324,8.01631862,4305.9,4305.8,0.0269]
[1757396328626,8.42671862,4305.9,4305.8,0.0269]
[1757396330011,8.01631862,4305.9,4305.8,0.0269]
[1757396330331,7.56491862,4305.9,4305.8,0.0269]
[1757396334332,7.56493449,4305.9,4305.8,0.0269]
[1757396337242,7.46593449,4305.9,4305.8,0.0269]
[1757396337537,7.46293449,4305.9,4305.8,1.2492]
[1757396340395,3.867,4305.9,4305.8,1.2492]
[1757396340593,3.867,4305.9,4305.8,0.3322]
[1757396340795,6.18939485,4305.9,4305.8,0.0269]
[1757396341030,6.18939485,4305.9,4305.8,0.3322]
[1757396341332,6.18939485,4305.9,4305.8,1.2492]
[1757396342132,2.32339485,4305.9,4305.8,1.2492]
[1757396342542,6.19039485,4305.9,4305.8,1.2492]
[1757396343042,6.19039485,4305.9,4305.8,0.3322]
[1757396343211,7.5232147,4305.9,4305.8,0.0269]
[1757396343394,3.6562147,4305.9,4305.8,0.0269]
[1757396343594,7.5232147,4305.9,4305.8,0.0269]
[1757396344110,7.73974778,4305.9,4305.8,0.0269]
[1757396344893,7.45384778,4305.9,4305.8,0.0269]
[1757396345242,6.40692793,4305.9,4305.8,0.3271]
[1757396345453,6.40692793,4305.9,4305.8,1.2549]
[1757396347243,6.19039485,4305.9,4305.8,1.2549]
[1757396347444,6.40689198,4305.9,4305.8,0.766]
[1757396347915,6.40689198,4305.9,4305.8,0.0269]
[1757396348796,6.19039485,4305.9,4305.8,0.0269]
[1757396349643,6.40691591,4305.9,4305.8,0.0269]
[1757396351925,6.40691591,4305.9,4305.8,0.766]
[1757396353393,4.08352106,4305.9,4305.8,1.2549]
[1757396353530,3.867,4305.9,4305.8,1.2549]
[1757396355386,0.001,4305.9,4305.8,1.2549]
[1757396355536,3.867,4305.9,4305.8,1.2549]
[1757396360356,6.18939485,4305.9,4305.8,1.2549]
[1757396364853,3.867,4305.9,4305.8,1.2549]
[1757396377871,0.001,4305.9,4305.8,1.2549]
[1757396378052,3.861,4305.9,4305.8,1.2549]
[1757396379252,3.977,4305.9,4305.8,3.57734879]
[1757396384991,3.975,4305.9,4305.8,3.57734879]
[1757396385531,0.117,4305.9,4305.8,3.57734879]
[1757396385731,3.975,4305.9,4305.8,3.57734879]
[1757396385931,3.975,4305.9,4305.8,4.16733846]
[1757396386132,3.975,4305.9,4305.8,0.3271]
[1757396386459,3.975,4305.9,4305.8,0.7613]
[1757396386979,3.975,4305.9,4305.8,0.0269]
[1757396387279,3.975,4305.9,4305.8,0.3186]
[1757396387640,3.975,4305.9,4305.8,0.0269]
[1757396387841,4.2703,4305.9,4305.8,0.0269]
[1757396390017,3.975,4305.9,4305.8,0.0269]
[1757396390193,3.975,4305.9,4305.8,0.7613]
[1757396392798,3.975,4305.9,4305.8,1.2421]
[1757396399192,3.975,4305.9,4305.8,3.56454879]
[1757396399527,3.975,4305.9,4305.8,1.2421]
[1757396400563,0.001,4305.9,4305.8,4.15326742]
[1757396400803,3.857,4305.9,4305.8,4.15326742]
[1757396401322,0.001,4305.9,4305.8,7.15326742]
[1757396411539,0.001,4305.9,4305.8,7.26926742]
[1757396415361,0.001,4305.9,4305.8,8.06126742]
[1757396423153,0.001,4305.9,4305.8,10.99276742]
[1757396423360,0.2996,4305.9,4305.8,6.05406742]
[1757396423558,0.2996,4305.9,4305.8,9.90906742]
[1757396427036,0.9801,4305.9,4305.8,0.0269]
[1757396435940,0.2996,4305.9,4305.8,0.0269]
[1757396438796,0.796,4305.9,4305.8,0.0269]
[1757396440897,3.11839485,4305.9,4305.8,0.0269]
[1757396441246,3.33119485,4305.9,4305.8,0.0269]
[1757396443344,7.18719485,4305.9,4305.8,0.0269]
[1757396444303,6.97439485,4305.9,4305.8,0.0269]
[1757396447156,6.47799485,4305.9,4305.8,0.0269]
[1757396450914,4.1556,4305.9,4305.8,0.0269]
[1757396451747,6.47799485,4305.9,4305.8,0.0269]
[1757396452459,4.1556,4305.9,4305.8,0.0269]
[1757396453256,6.47799485,4305.9,4305.8,0.0269]
[1757396456437,7.18719485,4305.9,4305.8,0.0269]
[1757396456632,8.31634333,4305.9,4305.8,0.0269]
[1757396459062,8.10354333,4305.9,4305.8,0.0269]
[1757396459266,7.60714333,4305.9,4305.8,0.0269]
[1757396468382,8.31764333,4305.9,4305.8,0.0269]
[1757396468723,8.10484333,4305.9,4305.8,0.0269]
[1757396469018,8.31764333,4305.9,4305.8,0.0269]
[1757396469822,4.46164333,4305.9,4305.8,0.0269]
[1757396469996,7.60714333,4305.9,4305.8,0.0269]
[1757396470708,8.10484333,4305.9,4305.8,0.0269]
[1757396471883,7.60714333,4305.9,4305.8,0.0269]
[1757396472823,8.10484333,4305.9,4305.8,0.0269]
[1757396473117,8.53413252,4305.9,4305.8,0.0269]
[1757396474817,8.53399712,4305.9,4305.8,0.0269]
[1757396479432,8.32119712,4305.9,4305.8,0.0269]
[1757396479634,7.82349712,4305.9,4305.8,0.0269]
[1757396480492,3.96749712,4305.9,4305.8,0.0269]
[1757396480698,7.82349712,4305.9,4305.8,0.0269]
[1757396481128,3.66889712,4305.9,4305.8,0.0269]
[1757396481436,3.66889712,4305.9,4305.8,1.2513]
[1757396481437,2.32339485,4305.9,4305.8,1.2513]
[1757396481732,3.857,4305.9,4305.8,1.2513]
[1757396486109,6.17939485,4305.9,4305.8,1.2513]
[1757396488116,3.857,4305.9,4305.8,1.2513]
[1757396489242,6.17939485,4305.9,4305.8,1.2513]
[1757396490803,6.27839485,4305.9,4305.8,0.0269]
[1757396490999,7.30676367,4305.9,4305.8,0.0269]
[1757396493431,6.27839485,4305.9,4305.8,0.0269]
[1757396495837,6.17939485,4305.9,4305.8,0.318]
[1757396496041,6.17939485,4305.9,4305.8,0.7597]
[1757396496241,6.17939485,4305.9,4305.8,1.2334]
[1757396496609,6.17939485,4305.9,4305.8,0.7597]
[1757396498348,6.17939485,4305.9,4305.8,0.318]
[1757396501326,6.17859485,4305.9,4305.8,0.318]
[1757396501542,6.17859485,4305.9,4305.8,0.7597]
[1757396501972,2.32259485,4305.9,4305.8,0.7597]
[1757396502172,6.17759485,4305.9,4305.8,1.2334]
[1757396505379,6.17759485,4305.9,4305.8,0.7597]
[1757396514777,6.17759485,4305.9,4305.8,0.318]
[1757396514972,6.17759485,4305.9,4305.8,0.7917]
[1757396515224,6.17759485,4305.9,4305.8,1.2334]
[1757396516934,3.8552,4305.9,4305.8,1.2334]
[1757396519324,6.17759485,4305.9,4305.8,1.2334]
[1757396520517,3.8552,4305.9,4305.8,1.2334]
[1757396521690,0.0002,4305.9,4305.8,1.2334]
[1757396521978,3.8552,4305.9,4305.8,1.35674]
[1757396533532,0.0002,4305.9,4305.8,1.35674]
[1757396533863,0.0002,4305.9,4305.8,6.67918879]
[1757396535213,0.0002,4305.9,4305.8,7.47118879]
[1757396538056,0.0002,4305.9,4305.8,7.58718879]
[1757396541357,0.0002,4305.9,4305.8,9.6393024]
[1757396541760,0.001,4306.4,4305.9,6.11439485]
[1757396541962,0.001,4306.4,4306.3,2.43817913]
[1757396542188,0.001,4306.4,4306.3,10.37137913]
[1757396542334,0.001,4306.4,4306.3,11.28647913]
[1757396562126,0.001,4306.4,4306.3,11.28447913]
[1757396562512,0.001,4306.4,4306.3,7.43247913]
[1757396562719,0.001,4306.4,4306.3,12.48836905]
[1757396566431,0.001,4306.4,4306.3,16.71836905]
[1757396568036,0.001,4306.8,4306.7,3.11396345]
[1757396568276,0.001,4306.8,4306.7,9.96596345]
[1757396568594,0.001,4306.8,4306.7,10.82786345]
[1757396568838,0.001,4306.8,4306.7,12.31171862]
[1757396569832,0.001,4306.8,4306.7,12.80161862]
[1757396571041,0.001,4306.8,4306.7,12.31171862]
[1757396572837,0.001,4306.8,4306.7,12.80161862]
[1757396578361,0.001,4306.8,4306.7,17.03161862]
[1757396581833,0.001,4306.8,4306.7,17.26391862]
[1757396582070,0.001,4306.8,4306.7,17.03161862]
[1757396584148,0.001,4306.8,4306.7,8.94961862]
[1757396584353,0.001,4306.8,4306.7,12.31071862]
[1757396585179,0.001,4306.8,4306.7,11.56481862]
[1757396585564,0.001,4306.8,4306.7,9.24285517]
[1757396585762,0.001,4306.8,4306.7,9.54205517]
[1757396586071,0.001,4306.8,4306.7,10.44715517]
[1757396587483,0.001,4307.3,4306.8,4.06211361]
[1757396587687,0.001,4307.3,4307.0,3.792]
[1757396587986,0.001,4307.3,4307.2,3.4152]
[1757396588545,0.001,4307.3,4307.2,4.3203]
[1757396588745,0.001,4307.3,4307.2,4.41315062]
[1757396588946,0.001,4307.3,4307.2,5.34577704]
[1757396591259,0.001,4307.3,4307.2,7.66747094]
[1757396595351,0.001,4307.3,4307.2,8.45947094]
[1757396595594,0.001,4307.3,4307.2,8.72958455]
[1757396599112,0.001,4307.3,4307.2,12.95958455]
[1757396601228,0.001,4307.3,4307.2,11.75528455]
[1757396601383,0.1,4307.3,4307.2,15.33517094]
[1757396604028,0.1,4307.3,4307.2,7.55254452]
[1757396604185,1.0092,4307.3,4307.2,10.49454452]
[1757396604381,1.0092,4307.3,4307.2,13.49454452]
[1757396605030,1.0092,4307.3,4307.2,9.26454452]
[1757396608242,0.5988,4307.3,4307.2,9.26454452]
[1757396609501,0.1,4307.3,4307.2,9.26454452]
[1757396611838,0.1,4307.3,4307.2,10.35234452]
[1757396611839,0.001,4307.3,4307.2,10.35234452]
[1757396612174,0.001,4307.7,4307.6,3.11347831]
[1757396612357,0.001,4307.7,4307.6,9.98669309]
[1757396612670,0.001,4307.7,4307.6,10.70017831]
[1757396612830,0.001,4307.7,4307.6,10.05632893]
[1757396613278,0.001,4307.7,4307.6,10.79302893]
[1757396613769,0.001,4307.7,4307.6,12.1518572]
[1757396614079,0.001,4307.7,4307.6,12.2678572]
[1757396618878,0.001,4307.7,4307.6,11.6480203]
[1757396619444,0.001,4307.7,4307.6,12.3847203]
[1757396625203,0.001,4307.7,4307.6,12.8584203]
[1757396628108,0.001,4307.7,4307.6,12.7424203]
[1757396628273,0.001,4307.7,4307.6,12.8584203]
[1757396628685,0.001,4307.7,4307.6,17.0884203]
[1757396639890,0.001,4307.7,4307.6,16.6147203]
[1757396640090,0.001,4307.7,4307.6,16.6137203]
[1757396641337,0.001,4307.7,4307.6,16.1728203]
[1757396643149,0.001,4307.7,4307.6,12.8356203]
[1757396643645,0.001,4307.7,4307.6,12.8346203]
[1757396644496,0.001,4307.7,4307.6,8.9866203]
[1757396644750,0.001,4307.7,4307.6,12.8346203]
[1757396647236,0.001,4308.3,4308.2,0.792]
[1757396647436,0.001,4308.3,4308.2,10.59568744]
[1757396647635,0.001,4308.3,4308.2,11.86927589]
[1757396648004,0.001,4308.3,4308.2,11.96210496]
[1757396661186,0.001,4308.3,4308.2,8.11410496]
[1757396661393,0.001,4308.3,4308.2,11.96110496]
[1757396664091,0.001,4308.3,4308.2,11.50390496]
[1757396666483,0.001,4308.3,4308.2,7.65690496]
[1757396666691,0.001,4308.3,4308.2,11.50390496]
[1757396668000,0.001,4308.3,4308.2,7.65690496]
[1757396668155,0.001,4308.3,4308.2,11.96110496]
[1757396670777,0.001,4308.3,4308.2,11.50390496]
[1757396672404,0.001,4308.3,4308.2,10.78030496]